[Event "Titled Tuesday Blitz August 15 Early 2023"]
[White "Dubov, Daniil"]
[Black "Srihari L R"]
[WhiteFideId "24126055"]
[BlackFideId "46617116"]
[WhiteElo "3053"]
[BlackElo "2771"]
[Result "0-1"]
[Round "11"]
[TimeControl "180+1"]
[Date "2023.08.15"]
[WhiteClock "0:00:34"]
[BlackClock "0:00:13"]
[Board "16"]

1. e4 {[%clk 0:03:00]}  c6 {[%clk 0:02:54]} 2. Bc4 {[%clk 0:02:58]}  d5 {[%clk 0:02:53]} 3. Bb3 {[%clk 0:02:59]}  dxe4 {[%clk 0:02:47]} 4. Qh5 {[%clk 0:02:58]}  g6 {[%clk 0:02:30]} 5. Qh4 {[%clk 0:02:58]}  Nf6 {[%clk 0:02:29]} 6. Nc3 {[%clk 0:02:58]}  Bg7 {[%clk 0:02:29]} 7. f3 {[%clk 0:02:58]}  exf3 {[%clk 0:02:22]} 8. Nxf3 {[%clk 0:02:59]}  O-O {[%clk 0:02:23]} 9. d4 {[%clk 0:02:51]}  Bg4 {[%clk 0:02:17]} 10. Ne2 {[%clk 0:02:42]}  Bxf3 {[%clk 0:02:12]} 11. gxf3 {[%clk 0:02:43]}  e6 {[%clk 0:02:11]} 12. Bg5 {[%clk 0:02:42]}  Nbd7 {[%clk 0:02:11]} 13. O-O-O {[%clk 0:02:41]}  b5 {[%clk 0:02:08]} 14. f4 {[%clk 0:02:35]}  a5 {[%clk 0:01:59]} 15. c3 {[%clk 0:02:35]}  b4 {[%clk 0:01:53]} 16. cxb4 {[%clk 0:02:25]}  axb4 {[%clk 0:01:53]} 17. Rhg1 {[%clk 0:02:24]}  Qa5 {[%clk 0:01:50]} 18. Ng3 {[%clk 0:02:22]}  c5 {[%clk 0:01:45]} 19. f5 {[%clk 0:02:19]}  exf5 {[%clk 0:01:41]} 20. Nxf5 {[%clk 0:02:13]}  c4 {[%clk 0:01:40]} 21. Bc2 {[%clk 0:01:54]}  b3 {[%clk 0:01:33]} 22. Bd2 {[%clk 0:01:43]}  bxa2 {[%clk 0:00:55]} 23. Bxa5 {[%clk 0:01:17]}  a1=Q+ {[%clk 0:00:54]} 24. Bb1 {[%clk 0:01:17]}  Qxa5 {[%clk 0:00:50]} 25. Ne7+ {[%clk 0:01:09]}  Kh8 {[%clk 0:00:50]} 26. Rxg6 {[%clk 0:01:09]}  fxg6 {[%clk 0:00:38]} 27. Nxg6+ {[%clk 0:01:09]}  Kg8 {[%clk 0:00:38]} 28. Ne7+ {[%clk 0:01:09]}  Kf7 {[%clk 0:00:39]} 29. Nf5 {[%clk 0:01:06]}  c3 {[%clk 0:00:29]} 30. Rg1 {[%clk 0:01:05]}  cxb2+ {[%clk 0:00:27]} 31. Kd1 {[%clk 0:01:05]}  Rg8 {[%clk 0:00:24]} 32. Bc2 {[%clk 0:00:37]}  Qa1+ {[%clk 0:00:21]} 33. Ke2 {[%clk 0:00:35]}  Qxg1 {[%clk 0:00:19]} 34. Bb3+ {[%clk 0:00:35]}  Kf8 {[%clk 0:00:19]} 35. Qf4 {[%clk 0:00:35]}  Qg2+ {[%clk 0:00:13]} 36. Kd3 {[%clk 0:00:35]}  b1=Q+ {[%clk 0:00:13]} 37. Kc3 {[%clk 0:00:34]}  Qgb2+ {[%clk 0:00:12]} 38. Kc4 {[%clk 0:00:34]}  Qxb3# {[%clk 0:00:13]} 0-1


[Site "https://www.chess.com"]

[Event "Titled Tuesday Blitz August 15 Early 2023"]
[White "Hambleton, Aman"]
[Black "Deac, Bogdan-Daniel"]
[WhiteFideId "2606577"]
[BlackFideId "1226380"]
[WhiteElo "2761"]
[BlackElo "3004"]
[Result "0-1"]
[Round "11"]
[TimeControl "180+1"]
[Date "2023.08.15"]
[WhiteClock "0:00:00"]
[BlackClock "0:01:03"]
[Board "18"]

1. d4 {[%clk 0:03:00]}  Nf6 {[%clk 0:02:59]} 2. c4 {[%clk 0:03:01]}  e6 {[%clk 0:03:00]} 3. Nc3 {[%clk 0:03:01]}  Bb4 {[%clk 0:02:58]} 4. Qc2 {[%clk 0:02:57]}  d5 {[%clk 0:02:58]} 5. cxd5 {[%clk 0:02:46]}  exd5 {[%clk 0:02:59]} 6. Bg5 {[%clk 0:02:46]}  c5 {[%clk 0:02:59]} 7. Nf3 {[%clk 0:02:45]}  Nc6 {[%clk 0:02:47]} 8. Rd1 {[%clk 0:02:32]}  h6 {[%clk 0:02:24]} 9. Bxf6 {[%clk 0:02:25]}  Qxf6 {[%clk 0:02:25]} 10. a3 {[%clk 0:01:57]}  Bf5 {[%clk 0:02:12]} 11. Qd2 {[%clk 0:01:27]}  Bxc3 {[%clk 0:02:02]} 12. Qxc3 {[%clk 0:01:28]}  c4 {[%clk 0:02:01]} 13. e3 {[%clk 0:01:10]}  b5 {[%clk 0:01:59]} 14. b3 {[%clk 0:00:40]}  a5 {[%clk 0:01:54]} 15. bxc4 {[%clk 0:00:40]}  bxc4 {[%clk 0:01:55]} 16. Be2 {[%clk 0:00:33]}  O-O {[%clk 0:01:43]} 17. O-O {[%clk 0:00:20]}  Rfb8 {[%clk 0:01:42]} 18. Nd2 {[%clk 0:00:20]}  Na7 {[%clk 0:01:41]} 19. Rc1 {[%clk 0:00:08]}  Nb5 {[%clk 0:01:24]} 20. Qa1 {[%clk 0:00:08]}  a4 {[%clk 0:01:15]} 21. Bd1 {[%clk 0:00:02]}  Nd6 {[%clk 0:01:06]} 22. Re1 {[%clk 0:00:00]}  Rb3 {[%clk 0:01:03]} 0-1


[Site "https://www.chess.com"]

[Event "Titled Tuesday Blitz August 15 Early 2023"]
[White "Shcherbin, Matvei"]
[Black "Drygalov, Sergey"]
[WhiteFideId "24125164"]
[BlackFideId "24171743"]
[WhiteElo "2752"]
[BlackElo "2984"]
[Result "1-0"]
[Round "11"]
[TimeControl "180+1"]
[Date "2023.08.15"]
[WhiteClock "0:00:34"]
[BlackClock "0:00:09"]
[Board "19"]

1. e4 {[%clk 0:03:00]}  c5 {[%clk 0:02:59]} 2. Nf3 {[%clk 0:02:58]}  d6 {[%clk 0:02:59]} 3. Bb5+ {[%clk 0:02:58]}  Nd7 {[%clk 0:02:59]} 4. O-O {[%clk 0:02:57]}  Nf6 {[%clk 0:02:59]} 5. Re1 {[%clk 0:02:57]}  a6 {[%clk 0:02:58]} 6. Bd3 {[%clk 0:02:55]}  e6 {[%clk 0:02:56]} 7. c3 {[%clk 0:02:55]}  b5 {[%clk 0:02:57]} 8. Bc2 {[%clk 0:02:53]}  c4 {[%clk 0:02:57]} 9. a4 {[%clk 0:02:52]}  Bb7 {[%clk 0:02:57]} 10. d4 {[%clk 0:02:40]}  cxd3 {[%clk 0:02:57]} 11. Qxd3 {[%clk 0:02:41]}  bxa4 {[%clk 0:02:57]} 12. Bxa4 {[%clk 0:02:36]}  Qc7 {[%clk 0:02:39]} 13. e5 {[%clk 0:02:34]}  dxe5 {[%clk 0:02:31]} 14. Nxe5 {[%clk 0:02:33]}  Bc5 {[%clk 0:01:47]} 15. Bg5 {[%clk 0:02:26]}  O-O {[%clk 0:01:43]} 16. Nxd7 {[%clk 0:02:11]}  Bxf2+ {[%clk 0:01:37]} 17. Kxf2 {[%clk 0:02:05]}  Ng4+ {[%clk 0:01:38]} 18. Ke2 {[%clk 0:01:58]}  Bxg2 {[%clk 0:01:03]} 19. h3 {[%clk 0:01:20]}  Qh2 {[%clk 0:00:58]} 20. Kd2 {[%clk 0:01:09]}  Bf1+ {[%clk 0:00:44]} 21. Re2 {[%clk 0:01:08]}  Bxe2 {[%clk 0:00:41]} 22. Qxe2 {[%clk 0:01:09]}  Qd6+ {[%clk 0:00:41]} 23. Kc2 {[%clk 0:01:07]}  h6 {[%clk 0:00:29]} 24. hxg4 {[%clk 0:01:05]}  Rfc8 {[%clk 0:00:26]} 25. Be3 {[%clk 0:01:00]}  Rc7 {[%clk 0:00:23]} 26. Nd2 {[%clk 0:00:56]}  a5 {[%clk 0:00:20]} 27. Ne4 {[%clk 0:00:55]}  Qe7 {[%clk 0:00:18]} 28. Rd1 {[%clk 0:00:51]}  Qh4 {[%clk 0:00:15]} 29. Bf4 {[%clk 0:00:48]}  Rca7 {[%clk 0:00:14]} 30. Bg3 {[%clk 0:00:48]}  Qe7 {[%clk 0:00:14]} 31. Qf3 {[%clk 0:00:45]}  Rc8 {[%clk 0:00:12]} 32. Bd6 {[%clk 0:00:38]}  Qh4 {[%clk 0:00:12]} 33. Rh1 {[%clk 0:00:37]}  Qd8 {[%clk 0:00:12]} 34. Ndf6+ {[%clk 0:00:35]}  Kh8 {[%clk 0:00:09]} 35. Qf4 {[%clk 0:00:34]} 1-0


[Site "https://www.chess.com"]

[Event "Titled Tuesday Blitz August 15 Early 2023"]
[White "Bryakin, Mikhail"]
[Black "Kazakouski, Valery"]
[WhiteFideId "4165314"]
[BlackFideId "13507443"]
[WhiteElo "2723"]
[BlackElo "2919"]
[Result "0-1"]
[Round "11"]
[TimeControl "180+1"]
[Date "2023.08.15"]
[WhiteClock "0:00:00"]
[BlackClock "0:00:41"]
[Board "21"]

1. c4 {[%clk 0:03:00]}  e6 {[%clk 0:02:59]} 2. g3 {[%clk 0:03:00]}  d5 {[%clk 0:02:59]} 3. Bg2 {[%clk 0:03:01]}  Nf6 {[%clk 0:03:00]} 4. Nf3 {[%clk 0:03:00]}  dxc4 {[%clk 0:03:00]} 5. Qa4+ {[%clk 0:03:00]}  Nbd7 {[%clk 0:03:00]} 6. Qxc4 {[%clk 0:03:00]}  a6 {[%clk 0:03:01]} 7. Qc2 {[%clk 0:03:01]}  c5 {[%clk 0:03:01]} 8. b3 {[%clk 0:03:01]}  b5 {[%clk 0:03:00]} 9. Bb2 {[%clk 0:03:02]}  Bb7 {[%clk 0:03:00]} 10. O-O {[%clk 0:03:02]}  Be7 {[%clk 0:03:00]} 11. a4 {[%clk 0:03:02]}  O-O {[%clk 0:03:00]} 12. d3 {[%clk 0:03:01]}  Qb6 {[%clk 0:03:00]} 13. Nc3 {[%clk 0:03:00]}  Rac8 {[%clk 0:02:59]} 14. h3 {[%clk 0:02:49]}  Rfd8 {[%clk 0:02:59]} 15. axb5 {[%clk 0:02:44]}  axb5 {[%clk 0:02:59]} 16. Ra2 {[%clk 0:02:44]}  Nb8 {[%clk 0:02:58]} 17. Raa1 {[%clk 0:02:34]}  Nc6 {[%clk 0:02:58]} 18. Nd1 {[%clk 0:02:24]}  Nd5 {[%clk 0:02:51]} 19. Ne3 {[%clk 0:02:13]}  Nxe3 {[%clk 0:02:25]} 20. fxe3 {[%clk 0:02:14]}  c4 {[%clk 0:02:25]} 21. bxc4 {[%clk 0:01:42]}  bxc4 {[%clk 0:02:17]} 22. d4 {[%clk 0:01:02]}  Nb4 {[%clk 0:02:15]} 23. Qd2 {[%clk 0:01:02]}  Qc7 {[%clk 0:02:03]} 24. Bc3 {[%clk 0:00:52]}  Rb8 {[%clk 0:01:58]} 25. Rfb1 {[%clk 0:00:40]}  Bxf3 {[%clk 0:01:46]} 26. exf3 {[%clk 0:00:37]}  Nd5 {[%clk 0:01:36]} 27. Kh2 {[%clk 0:00:14]}  Rxb1 {[%clk 0:01:16]} 28. Rxb1 {[%clk 0:00:14]}  Ra8 {[%clk 0:01:14]} 29. e4 {[%clk 0:00:07]}  Nxc3 {[%clk 0:01:12]} 30. Qxc3 {[%clk 0:00:08]}  Ra3 {[%clk 0:01:08]} 31. Qc2 {[%clk 0:00:08]}  c3 {[%clk 0:00:57]} 32. f4 {[%clk 0:00:09]}  g6 {[%clk 0:00:55]} 33. h4 {[%clk 0:00:05]}  Qc4 {[%clk 0:00:54]} 34. d5 {[%clk 0:00:03]}  exd5 {[%clk 0:00:53]} 35. exd5 {[%clk 0:00:04]}  Ra2 {[%clk 0:00:53]} 36. Qb3 {[%clk 0:00:03]}  Qe2 {[%clk 0:00:49]} 37. Qb8+ {[%clk 0:00:01]}  Bf8 {[%clk 0:00:49]} 38. Rg1 {[%clk 0:00:02]}  c2 {[%clk 0:00:45]} 39. Qc8 {[%clk 0:00:03]}  Kg7 {[%clk 0:00:42]} 40. h5 {[%clk 0:00:02]}  Qxh5+ {[%clk 0:00:41]} 41. Bh3 {[%clk 0:00:00]}  c1=Q+ {[%clk 0:00:41]} 0-1


[Site "https://www.chess.com"]

[Event "Titled Tuesday Blitz August 15 Early 2023"]
[White "Kuznetsov, Felix"]
[Black "Demchenko, Anton"]
[WhiteFideId "34147990"]
[BlackFideId "4160258"]
[WhiteElo "2720"]
[BlackElo "2908"]
[Result "0-1"]
[Round "11"]
[TimeControl "180+1"]
[Date "2023.08.15"]
[WhiteClock "0:00:00"]
[BlackClock "0:00:13"]
[Board "22"]

1. e4 {[%clk 0:03:00]}  e5 {[%clk 0:03:00]} 2. Nf3 {[%clk 0:03:00]}  Nc6 {[%clk 0:03:00]} 3. Bc4 {[%clk 0:02:57]}  Nf6 {[%clk 0:03:00]} 4. d3 {[%clk 0:02:55]}  h6 {[%clk 0:02:59]} 5. Nbd2 {[%clk 0:02:53]}  d6 {[%clk 0:02:58]} 6. h3 {[%clk 0:02:52]}  Na5 {[%clk 0:02:57]} 7. c3 {[%clk 0:02:35]}  Nxc4 {[%clk 0:02:55]} 8. Nxc4 {[%clk 0:02:36]}  Be7 {[%clk 0:02:49]} 9. O-O {[%clk 0:02:35]}  O-O {[%clk 0:02:50]} 10. Re1 {[%clk 0:02:35]}  Re8 {[%clk 0:02:48]} 11. d4 {[%clk 0:02:32]}  exd4 {[%clk 0:02:46]} 12. cxd4 {[%clk 0:02:24]}  d5 {[%clk 0:02:41]} 13. exd5 {[%clk 0:02:25]}  Nxd5 {[%clk 0:02:41]} 14. Nce5 {[%clk 0:02:25]}  Be6 {[%clk 0:02:39]} 15. Qa4 {[%clk 0:02:18]}  c6 {[%clk 0:02:39]} 16. Bd2 {[%clk 0:02:15]}  Bd6 {[%clk 0:02:36]} 17. b4 {[%clk 0:02:06]}  f6 {[%clk 0:02:23]} 18. Nd3 {[%clk 0:01:58]}  b5 {[%clk 0:02:06]} 19. Qc2 {[%clk 0:01:53]}  Rc8 {[%clk 0:02:01]} 20. Nc5 {[%clk 0:01:53]}  Bf7 {[%clk 0:01:59]} 21. Qf5 {[%clk 0:01:47]}  Ne7 {[%clk 0:01:35]} 22. Qg4 {[%clk 0:01:35]}  h5 {[%clk 0:01:35]} 23. Qe4 {[%clk 0:01:17]}  Bd5 {[%clk 0:01:30]} 24. Qd3 {[%clk 0:01:10]}  Bxc5 {[%clk 0:01:26]} 25. dxc5 {[%clk 0:01:07]}  Bxf3 {[%clk 0:01:26]} 26. Qxf3 {[%clk 0:00:58]}  Qxd2 {[%clk 0:01:26]} 27. Rad1 {[%clk 0:00:43]}  Qg5 {[%clk 0:01:22]} 28. Rd7 {[%clk 0:00:41]}  Nd5 {[%clk 0:01:22]} 29. Rd1 {[%clk 0:00:33]}  a6 {[%clk 0:01:14]} 30. a3 {[%clk 0:00:33]}  Re5 {[%clk 0:01:11]} 31. Ra7 {[%clk 0:00:30]}  Rce8 {[%clk 0:01:10]} 32. Kh2 {[%clk 0:00:26]}  Re1 {[%clk 0:01:06]} 33. Rxe1 {[%clk 0:00:17]}  Rxe1 {[%clk 0:01:07]} 34. Rxa6 {[%clk 0:00:15]}  Re6 {[%clk 0:00:43]} 35. g3 {[%clk 0:00:12]}  h4 {[%clk 0:00:41]} 36. gxh4 {[%clk 0:00:11]}  Qe5+ {[%clk 0:00:40]} 37. Qg3 {[%clk 0:00:11]}  Qf5 {[%clk 0:00:25]} 38. Ra8+ {[%clk 0:00:05]}  Kh7 {[%clk 0:00:26]} 39. Ra7 {[%clk 0:00:04]}  Re7 {[%clk 0:00:25]} 40. Rxe7 {[%clk 0:00:03]}  Nxe7 {[%clk 0:00:26]} 41. Kg2 {[%clk 0:00:03]}  Nd5 {[%clk 0:00:25]} 42. Qd6 {[%clk 0:00:02]}  Qe4+ {[%clk 0:00:22]} 43. Kg3 {[%clk 0:00:02]}  Nc3 {[%clk 0:00:14]} 44. h5 {[%clk 0:00:01]}  Ne2+ {[%clk 0:00:13]} 45. Kh2 {[%clk 0:00:00]}  Nf4 {[%clk 0:00:13]} 0-1


[Site "https://www.chess.com"]

[Event "Titled Tuesday Blitz August 15 Early 2023"]
[White "Lagarde, Maxime"]
[Black "Matinian, Nikita"]
[WhiteFideId "662399"]
[BlackFideId "24129100"]
[WhiteElo "2883"]
[BlackElo "2717"]
[Result "1-0"]
[Round "11"]
[TimeControl "180+1"]
[Date "2023.08.15"]
[WhiteClock "0:00:50"]
[BlackClock "0:00:08"]
[Board "23"]

1. d4 {[%clk 0:02:59]}  Nf6 {[%clk 0:03:00]} 2. Bg5 {[%clk 0:02:59]}  d5 {[%clk 0:02:59]} 3. e3 {[%clk 0:02:56]}  c5 {[%clk 0:02:55]} 4. Bxf6 {[%clk 0:02:54]}  gxf6 {[%clk 0:02:56]} 5. dxc5 {[%clk 0:02:54]}  Qa5+ {[%clk 0:02:47]} 6. Nd2 {[%clk 0:02:53]}  e5 {[%clk 0:02:36]} 7. Nf3 {[%clk 0:02:54]}  Be6 {[%clk 0:02:32]} 8. Be2 {[%clk 0:02:54]}  Nd7 {[%clk 0:02:22]} 9. O-O {[%clk 0:02:52]}  Qxc5 {[%clk 0:02:20]} 10. a3 {[%clk 0:02:43]}  Rg8 {[%clk 0:02:16]} 11. g3 {[%clk 0:02:35]}  f5 {[%clk 0:02:16]} 12. c4 {[%clk 0:02:34]}  f4 {[%clk 0:02:13]} 13. Nb3 {[%clk 0:02:21]}  Qc6 {[%clk 0:02:05]} 14. Na5 {[%clk 0:02:18]}  Qb6 {[%clk 0:01:56]} 15. cxd5 {[%clk 0:02:16]}  Bh3 {[%clk 0:01:56]} 16. Nc4 {[%clk 0:02:15]}  Qf6 {[%clk 0:01:30]} 17. exf4 {[%clk 0:02:09]}  exf4 {[%clk 0:01:21]} 18. Re1 {[%clk 0:02:07]}  Kd8 {[%clk 0:01:22]} 19. d6 {[%clk 0:01:47]}  Bh6 {[%clk 0:01:14]} 20. Qd5 {[%clk 0:01:40]}  Rc8 {[%clk 0:01:03]} 21. Na5 {[%clk 0:01:27]}  Nc5 {[%clk 0:00:45]} 22. Qe5 {[%clk 0:01:03]}  Qxe5 {[%clk 0:00:28]} 23. Nxe5 {[%clk 0:01:03]}  Rg7 {[%clk 0:00:28]} 24. b4 {[%clk 0:00:59]}  Ne4 {[%clk 0:00:28]} 25. Nxb7+ {[%clk 0:00:58]}  Ke8 {[%clk 0:00:27]} 26. Bb5+ {[%clk 0:00:56]}  Kf8 {[%clk 0:00:26]} 27. Rxe4 {[%clk 0:00:55]}  fxg3 {[%clk 0:00:15]} 28. hxg3 {[%clk 0:00:56]}  Bf5 {[%clk 0:00:12]} 29. Nd7+ {[%clk 0:00:51]}  Kg8 {[%clk 0:00:12]} 30. Nf6+ {[%clk 0:00:51]}  Kh8 {[%clk 0:00:08]} 31. d7 {[%clk 0:00:50]} 1-0


[Site "https://www.chess.com"]

[Event "Titled Tuesday Blitz August 15 Early 2023"]
[White "Pert, Richard G"]
[Black "Wagner, Dennis"]
[WhiteFideId "404748"]
[BlackFideId "24650684"]
[WhiteElo "2660"]
[BlackElo "2782"]
[Result "1-0"]
[Round "11"]
[TimeControl "180+1"]
[Date "2023.08.15"]
[WhiteClock "0:00:26"]
[BlackClock "0:00:01"]
[Board "25"]

1. d4 {[%clk 0:03:00]}  Nf6 {[%clk 0:02:59]} 2. Bg5 {[%clk 0:03:00]}  e6 {[%clk 0:02:57]} 3. e4 {[%clk 0:02:59]}  h6 {[%clk 0:02:57]} 4. Bxf6 {[%clk 0:02:59]}  Qxf6 {[%clk 0:02:58]} 5. c3 {[%clk 0:02:59]}  d6 {[%clk 0:02:57]} 6. Bd3 {[%clk 0:02:58]}  g5 {[%clk 0:02:55]} 7. Ne2 {[%clk 0:02:58]}  Nc6 {[%clk 0:02:44]} 8. O-O {[%clk 0:02:57]}  e5 {[%clk 0:02:43]} 9. Bb5 {[%clk 0:02:57]}  Bd7 {[%clk 0:02:43]} 10. d5 {[%clk 0:02:57]}  Nb8 {[%clk 0:02:43]} 11. Qb3 {[%clk 0:02:56]}  c6 {[%clk 0:02:25]} 12. Bc4 {[%clk 0:02:52]}  b6 {[%clk 0:02:13]} 13. dxc6 {[%clk 0:02:48]}  Nxc6 {[%clk 0:02:14]} 14. Bd5 {[%clk 0:02:44]}  Be7 {[%clk 0:02:13]} 15. Na3 {[%clk 0:02:43]}  O-O {[%clk 0:02:10]} 16. Nc4 {[%clk 0:02:40]}  Rab8 {[%clk 0:02:05]} 17. a4 {[%clk 0:02:37]}  h5 {[%clk 0:01:54]} 18. Rad1 {[%clk 0:02:17]}  h4 {[%clk 0:01:50]} 19. f3 {[%clk 0:02:04]}  Kg7 {[%clk 0:01:45]} 20. Ne3 {[%clk 0:02:04]}  Na5 {[%clk 0:01:37]} 21. Qa2 {[%clk 0:01:53]}  Bd8 {[%clk 0:01:34]} 22. g4 {[%clk 0:01:42]}  b5 {[%clk 0:01:29]} 23. b4 {[%clk 0:01:37]}  Nc6 {[%clk 0:00:50]} 24. Bxc6 {[%clk 0:01:35]}  Bxc6 {[%clk 0:00:40]} 25. Nf5+ {[%clk 0:01:23]}  Kg8 {[%clk 0:00:37]} 26. Rxd6 {[%clk 0:01:23]}  Bb6+ {[%clk 0:00:33]} 27. Kh1 {[%clk 0:01:20]}  Qxd6 {[%clk 0:00:27]} 28. Nxd6 {[%clk 0:01:19]}  bxa4 {[%clk 0:00:28]} 29. c4 {[%clk 0:01:09]}  Rbd8 {[%clk 0:00:19]} 30. c5 {[%clk 0:01:08]}  Bc7 {[%clk 0:00:20]} 31. Qd2 {[%clk 0:01:00]}  f6 {[%clk 0:00:18]} 32. Nc3 {[%clk 0:00:58]}  Rd7 {[%clk 0:00:17]} 33. b5 {[%clk 0:00:54]}  Ba8 {[%clk 0:00:15]} 34. Nd5 {[%clk 0:00:51]}  Bxd6 {[%clk 0:00:13]} 35. cxd6 {[%clk 0:00:50]}  Kg7 {[%clk 0:00:13]} 36. Nc7 {[%clk 0:00:44]}  Rc8 {[%clk 0:00:09]} 37. Nxa8 {[%clk 0:00:39]}  Rxa8 {[%clk 0:00:07]} 38. Rc1 {[%clk 0:00:39]}  Rad8 {[%clk 0:00:06]} 39. Rc6 {[%clk 0:00:38]}  h3 {[%clk 0:00:06]} 40. Kg1 {[%clk 0:00:37]}  a3 {[%clk 0:00:06]} 41. Kf2 {[%clk 0:00:35]}  a2 {[%clk 0:00:04]} 42. Qxa2 {[%clk 0:00:33]}  Rxd6 {[%clk 0:00:04]} 43. Rxd6 {[%clk 0:00:33]}  Rxd6 {[%clk 0:00:05]} 44. Qxa7+ {[%clk 0:00:32]}  Kg6 {[%clk 0:00:06]} 45. Qa2 {[%clk 0:00:29]}  Rd4 {[%clk 0:00:05]} 46. Qb2 {[%clk 0:00:28]}  Rd1 {[%clk 0:00:03]} 47. b6 {[%clk 0:00:27]}  Rg1 {[%clk 0:00:01]} 48. Kxg1 {[%clk 0:00:26]} 1-0


[Site "https://www.chess.com"]

[Event "Titled Tuesday Blitz August 15 Early 2023"]
[White "Akhmetov, Ayan"]
[Black "Indjic, Aleksandar"]
[WhiteFideId "13703706"]
[BlackFideId "911925"]
[WhiteElo "2588"]
[BlackElo "3000"]
[Result "0-1"]
[Round "11"]
[TimeControl "180+1"]
[Date "2023.08.15"]
[WhiteClock "0:00:00"]
[BlackClock "0:00:52"]
[Board "26"]

1. Nf3 {[%clk 0:03:00]}  d5 {[%clk 0:02:58]} 2. g3 {[%clk 0:03:00]}  Nc6 {[%clk 0:02:51]} 3. d4 {[%clk 0:02:59]}  Bf5 {[%clk 0:02:52]} 4. c4 {[%clk 0:02:59]}  e6 {[%clk 0:02:50]} 5. Bg2 {[%clk 0:03:00]}  Nb4 {[%clk 0:02:49]} 6. O-O {[%clk 0:03:01]}  h6 {[%clk 0:02:45]} 7. Nc3 {[%clk 0:02:53]}  Nf6 {[%clk 0:02:43]} 8. Ne5 {[%clk 0:02:29]}  Bc2 {[%clk 0:02:41]} 9. Qd2 {[%clk 0:02:25]}  Bh7 {[%clk 0:02:41]} 10. a3 {[%clk 0:02:12]}  Nc6 {[%clk 0:02:40]} 11. Nxc6 {[%clk 0:01:54]}  bxc6 {[%clk 0:02:41]} 12. Re1 {[%clk 0:01:52]}  Be7 {[%clk 0:02:38]} 13. e4 {[%clk 0:01:39]}  O-O {[%clk 0:02:24]} 14. e5 {[%clk 0:01:22]}  Nd7 {[%clk 0:02:23]} 15. Qe2 {[%clk 0:01:09]}  a5 {[%clk 0:02:12]} 16. c5 {[%clk 0:00:59]}  Kh8 {[%clk 0:02:12]} 17. f4 {[%clk 0:00:51]}  f6 {[%clk 0:02:07]} 18. Be3 {[%clk 0:00:38]}  Rb8 {[%clk 0:02:01]} 19. Rad1 {[%clk 0:00:35]}  Rb3 {[%clk 0:01:56]} 20. Rd2 {[%clk 0:00:32]}  Qc8 {[%clk 0:01:49]} 21. Bh3 {[%clk 0:00:31]}  fxe5 {[%clk 0:01:39]} 22. Bxe6 {[%clk 0:00:25]}  e4 {[%clk 0:01:22]} 23. Qg4 {[%clk 0:00:19]}  Rd8 {[%clk 0:01:23]} 24. Rf1 {[%clk 0:00:11]}  Bg8 {[%clk 0:01:22]} 25. Bxg8 {[%clk 0:00:09]}  Rxg8 {[%clk 0:01:21]} 26. Qe6 {[%clk 0:00:09]}  Qd8 {[%clk 0:01:17]} 27. Qxc6 {[%clk 0:00:10]}  Nf6 {[%clk 0:01:17]} 28. h3 {[%clk 0:00:07]}  Qa8 {[%clk 0:01:11]} 29. Qa4 {[%clk 0:00:07]}  Rgb8 {[%clk 0:01:09]} 30. Rff2 {[%clk 0:00:04]}  c6 {[%clk 0:01:06]} 31. Kg2 {[%clk 0:00:03]}  Ne8 {[%clk 0:01:03]} 32. Rc2 {[%clk 0:00:02]}  Nc7 {[%clk 0:00:59]} 33. Bc1 {[%clk 0:00:03]}  Bf6 {[%clk 0:00:59]} 34. Be3 {[%clk 0:00:02]}  Qa6 {[%clk 0:00:56]} 35. Rfd2 {[%clk 0:00:02]}  Ne6 {[%clk 0:00:55]} 36. Rf2 {[%clk 0:00:01]}  Qd3 {[%clk 0:00:52]} 37. Rfd2 {[%clk 0:00:00]}  Qxe3 {[%clk 0:00:52]} 0-1


[Site "https://www.chess.com"]

[Event "Titled Tuesday Blitz August 15 Early 2023"]
[White "Papasimakopoulos, Alexandros"]
[Black "Moskalenko, Alexander"]
[WhiteFideId "4244125"]
[BlackFideId "4155351"]
[WhiteElo "2705"]
[BlackElo "2889"]
[Result "0-1"]
[Round "11"]
[TimeControl "180+1"]
[Date "2023.08.15"]
[WhiteClock "0:00:25"]
[BlackClock "0:01:27"]
[Board "28"]

1. d4 {[%clk 0:03:00]}  e6 {[%clk 0:02:52]} 2. c4 {[%clk 0:03:01]}  b6 {[%clk 0:02:52]} 3. e4 {[%clk 0:03:00]}  Bb7 {[%clk 0:02:53]} 4. Bd3 {[%clk 0:03:01]}  f5 {[%clk 0:02:53]} 5. exf5 {[%clk 0:02:41]}  Bb4+ {[%clk 0:02:53]} 6. Kf1 {[%clk 0:02:41]}  Nf6 {[%clk 0:02:53]} 7. a3 {[%clk 0:02:34]}  Bd6 {[%clk 0:02:48]} 8. Nc3 {[%clk 0:02:35]}  O-O {[%clk 0:02:48]} 9. Nf3 {[%clk 0:02:35]}  Nc6 {[%clk 0:02:37]} 10. fxe6 {[%clk 0:02:29]}  dxe6 {[%clk 0:02:36]} 11. Qe2 {[%clk 0:02:29]}  Qe8 {[%clk 0:02:35]} 12. Bg5 {[%clk 0:02:27]}  h6 {[%clk 0:02:32]} 13. Bh4 {[%clk 0:02:27]}  Qh5 {[%clk 0:02:29]} 14. Qxe6+ {[%clk 0:02:23]}  Kh8 {[%clk 0:02:29]} 15. Qf5 {[%clk 0:02:22]}  g5 {[%clk 0:02:06]} 16. Bg3 {[%clk 0:02:14]}  Ne7 {[%clk 0:02:02]} 17. Qe6 {[%clk 0:02:11]}  Bxg3 {[%clk 0:01:58]} 18. Qxe7 {[%clk 0:01:36]}  Rae8 {[%clk 0:01:47]} 19. Qb4 {[%clk 0:00:57]}  Bxf3 {[%clk 0:01:40]} 20. fxg3 {[%clk 0:00:47]}  Ng4 {[%clk 0:01:37]} 21. gxf3 {[%clk 0:00:32]}  Rxf3+ {[%clk 0:01:32]} 22. Kg2 {[%clk 0:00:33]}  Rf2+ {[%clk 0:01:31]} 23. Kg1 {[%clk 0:00:33]}  Rxh2 {[%clk 0:01:26]} 24. Be4 {[%clk 0:00:30]}  Qh3 {[%clk 0:01:25]} 25. Ne2 {[%clk 0:00:26]}  Rxh1+ {[%clk 0:01:26]} 26. Bxh1 {[%clk 0:00:25]}  Qh2+ {[%clk 0:01:26]} 27. Kf1 {[%clk 0:00:25]}  Qf2# {[%clk 0:01:27]} 0-1


[Site "https://www.chess.com"]